bitfinex/quotes_ETHUSD_20240730
["timestamp","ask_amount","ask_price","bid_price","bid_amount"]
[1722304620175,0.07780197,3308.8,3308.7,0.06043998]
[1722304620637,7.37,3309.2,3308.7,0.30827898]
[1722304620845,0.07780197,3308.8,3308.7,0.06043998]
[1722304621164,7.37,3309.2,3308.7,0.06043998]
[1722304621279,0.07786649,3308.8,3308.7,0.06043998]
[1722304621478,7.37,3309.2,3308.7,0.06043998]
[1722304621731,0.07787028,3308.8,3308.7,0.06043998]
[1722304621882,7.37,3309.2,3308.7,0.06043998]
[1722304622078,0.07787028,3308.8,3308.7,0.06043998]
[1722304622397,7.37,3309.2,3308.7,0.06043998]
[1722304622398,9.7875,3309.2,3308.7,0.06043998]
[1722304622585,0.07787028,3308.8,3308.7,0.06043998]
[1722304622780,9.7875,3309.2,3308.7,0.06043998]
[1722304622980,0.07787028,3308.8,3308.7,0.06043998]
[1722304623224,9.7875,3309.2,3308.9,2.41771]
[1722304623225,7.37,3309.2,3308.9,2.41771]
[1722304623427,0.07787028,3308.8,3308.7,7.444564]
[1722304623597,7.37,3309.9,3309.3,2.41741]
[1722304623902,2.41699,3309.9,3309.8,35.0]
[1722304624591,2.96699,3309.9,3309.8,35.0]
[1722304624952,5.96699,3309.9,3309.8,35.0]
[1722304625126,8.38398,3309.9,3309.8,35.0]
[1722304625295,8.98751635,3309.9,3309.8,35.0]
[1722304625621,6.57052635,3309.9,3309.8,35.0]
[1722304625795,5.96699,3309.9,3309.8,35.0]
[1722304626189,8.38398,3309.9,3309.8,35.0]
[1722304628597,10.80097,3309.9,3309.8,35.0]
[1722304628823,12.04530611,3309.9,3309.8,35.0]
[1722304629016,12.35277607,3309.9,3309.8,35.0]
[1722304629345,13.85665368,3309.9,3309.8,35.0]
[1722304629533,12.30484761,3309.9,3309.8,35.0]
[1722304629734,2.41777,3308.9,3308.4,2.3056]
[1722304629947,2.41759,3309.1,3308.4,2.3056]
[1722304630323,2.41759,3309.1,3309.0,35.0]
[1722304630525,2.96759,3309.1,3309.0,35.0]
[1722304630712,5.96759,3309.1,3309.0,35.0]
[1722304631161,3.55,3309.1,3309.0,35.0]
[1722304631745,0.55,3309.1,3309.0,35.0]
[1722304631923,3.55,3309.1,3309.0,35.0]
[1722304632118,0.55,3309.1,3309.0,35.0]
[1722304633556,0.55,3309.1,3308.5,2.418]
[1722304633923,2.41769,3309.0,3308.4,2.777975]
[1722304634163,5.41769,3309.0,3308.6,35.0]
[1722304634351,3.0,3309.0,3308.6,35.0]
[1722304634660,2.41773,3308.9,3308.6,35.0]
[1722304635156,2.41784,3308.8,3308.6,35.0]
[1722304635345,5.41766,3309.0,3308.6,35.0]
[1722304635346,2.41786,3308.7,3308.6,35.0]
[1722304635548,4.83572,3308.7,3308.6,35.0]
[1722304635743,8.38572,3308.7,3308.6,35.0]
[1722304636282,9.492892,3308.7,3308.6,35.0]
[1722304638446,3.55,3308.7,3308.6,35.0]
[1722304638646,0.55,3308.7,3308.6,35.0]
[1722304638863,9.78743,3309.3,3308.6,35.0]
[1722304639065,0.07757797,3308.7,3308.5,2.41799]
[1722304639245,0.07757797,3308.7,3308.6,4.89632154]
[1722304639448,7.37,3309.6,3308.7,2.41786]
[1722304639682,2.41735,3309.4,3308.8,0.06043515]
[1722304640442,0.07769947,3309.3,3308.8,0.06043515]
[1722304640674,0.07769947,3309.3,3308.9,2.41769]
[1722304640946,9.78721,3309.6,3309.2,35.0]
[1722304641287,3.0,3309.5,3309.2,35.0]
[1722304642079,0.55,3309.4,3309.2,35.0]
[1722304645163,0.55,3309.4,3308.7,2.41784]
[1722304645368,0.55,3309.4,3308.8,0.06043522]
[1722304645673,0.55,3309.4,3309.3,35.0]
[1722304646882,8.61126204,3310.0,3309.3,37.41742]
[1722304647093,7.37,3310.0,3309.4,0.06042767]
[1722304647241,5.10289,3310.1,3309.5,3.04901288]
[1722304647447,5.10289,3310.1,3309.4,2.47777767]
[1722304648356,3.0,3310.0,3309.4,0.06042767]
[1722304648546,0.55,3309.9,3309.4,0.06042767]
[1722304648899,2.41723,3309.6,3309.3,35.0]
[1722304649095,2.41729,3309.5,3309.3,35.0]
[1722304649383,2.41735,3309.4,3309.3,35.0]
[1722304649916,5.96735,3309.4,3309.3,35.0]
[1722304650200,8.3847,3309.4,3309.3,35.0]
[1722304650401,9.22317,3309.4,3309.3,35.0]
[1722304650875,13.19435234,3309.4,3309.3,35.0]
[1722304651386,11.64052,3309.4,3309.3,35.0]
[1722304651584,13.76190277,3309.4,3309.3,35.0]
[1722304652569,11.89730396,3309.4,3309.3,35.0]
[1722304652896,2.41823,3308.3,3307.5,2.41871]
[1722304653097,2.41823,3308.3,3307.4,2.4641]
[1722304653098,2.41835,3308.1,3307.4,2.4641]
[1722304653246,2.41835,3308.1,3308.0,35.0]
[1722304653763,2.96835,3308.1,3308.0,35.0]
[1722304653963,0.55,3308.1,3308.0,35.0]
[1722304654163,0.07267394,3308.1,3308.0,38.04901288]
[1722304654564,3.0,3308.5,3308.0,38.04901288]
[1722304655178,7.37,3308.6,3308.1,0.06045149]
[1722304655489,0.55,3308.5,3308.2,2.41821]
[1722304655689,0.55,3308.5,3308.1,0.06045149]
[1722304655864,3.55,3308.7,3308.3,35.0]
[1722304656699,4.79350716,3308.7,3308.3,35.0]
[1722304656887,3.0,3308.7,3308.4,0.06045147]
[1722304657092,3.0,3308.9,3308.5,0.49144015]
[1722304657272,4.24350716,3308.9,3308.3,2.4358]
[1722304657467,6.66128716,3308.9,3308.8,35.0]
[1722304657686,6.97216395,3308.9,3308.8,35.0]
[1722304657866,5.41778,3308.9,3308.8,35.0]
[1722304658071,7.2123867,3308.9,3308.8,35.0]
[1722304659281,7.21257937,3308.9,3308.8,35.0]
[1722304659487,5.96778,3308.9,3308.8,35.0]
[1722304659682,8.38556,3308.9,3308.8,35.0]
[1722304659878,9.94160643,3308.9,3308.8,35.0]
[1722304660082,10.319616,3308.9,3308.8,35.0]
[1722304660716,15.45242142,3308.9,3308.8,35.0]
[1722304661626,2.41866,3307.7,3306.9,4.85447]
[1722304661917,2.41816,3308.3,3306.9,3.162678]
[1722304661918,2.4188,3307.5,3306.9,3.162678]
[1722304662129,2.4188,3307.5,3307.0,35.0]
[1722304662130,0.55,3307.4,3307.0,35.0]
[1722304662414,2.41903,3307.1,3307.0,35.0]
[1722304662631,5.38806,3307.1,3307.0,35.0]
[1722304662781,11.97306,3307.1,3307.0,35.0]
[1722304662961,13.3672678,3307.1,3307.0,35.0]
[1722304663365,14.60928831,3307.1,3307.0,35.0]
[1722304663621,13.3672678,3307.1,3307.0,35.0]
[1722304663767,14.92240359,3307.1,3307.0,35.0]
[1722304664211,14.60823041,3307.1,3307.0,35.0]
[1722304664416,17.02726041,3307.1,3307.0,35.0]
[1722304664618,13.3672678,3307.1,3307.0,35.0]
[1722304665067,14.60821061,3307.1,3307.0,35.0]
[1722304665271,12.18918061,3307.1,3307.0,35.0]
[1722304665474,13.3672678,3307.1,3307.0,35.0]
[1722304665674,10.9482378,3307.1,3307.0,35.0]
[1722304666020,7.20749094,3307.1,3307.0,35.0]
[1722304666717,3.62249094,3307.1,3307.0,35.0]
[1722304666912,0.62249094,3307.1,3307.0,35.0]
[1722304667332,0.07249094,3307.1,3307.0,35.0]
[1722304667822,0.07249094,3307.1,3307.0,37.41911]
[1722304667968,11.02932281,3308.0,3307.1,2.41901]
[1722304667969,9.78838,3308.0,3307.1,2.41901]
[1722304668173,2.49049178,3307.9,3307.1,2.47947918]
[1722304668587,2.49049178,3307.9,3307.5,35.0]
[1722304669006,0.07202178,3307.9,3307.5,35.0]
[1722304669177,3.07202178,3307.9,3307.5,3.04901288]
[1722304669373,3.07202178,3307.9,3307.5,2.41874]
[1722304669677,3.07202178,3307.9,3307.8,35.0]
[1722304670230,0.07202178,3307.9,3307.8,35.0]
[1722304670402,3.07202178,3307.9,3307.8,35.0]
[1722304670726,2.41816,3308.3,3307.8,35.0]
[1722304670874,2.41816,3308.3,3307.5,2.41874]
[1722304671073,2.41816,3308.3,3307.5,2.95360644]
[1722304671074,0.62172459,3308.2,3307.5,2.95360644]
[1722304671275,0.62172459,3308.2,3308.0,35.0]
[1722304671276,6.03997459,3308.2,3308.0,35.0]
[1722304671476,2.4183,3308.1,3308.0,35.0]
[1722304671739,5.9683,3308.1,3308.0,35.0]
[1722304672034,9.41015459,3308.1,3308.0,35.0]
[1722304672627,4.57355459,3308.1,3306.3,2.3839]
[1722304672837,3.585,3307.4,3306.6,2.41939]
[1722304672978,7.37,3307.7,3307.0,35.0]
[1722304673178,0.62152625,3307.6,3307.1,3.04901288]
[1722304673438,2.41874,3307.5,3307.1,3.04901288]
[1722304673575,3.62152625,3307.6,3307.0,35.0]
[1722304673576,2.41887,3307.4,3307.0,35.0]
[1722304673970,0.07152625,3307.3,3307.0,35.0]
[1722304674120,0.55,3307.2,3307.0,35.0]
[1722304674538,0.07152625,3307.1,3307.0,35.0]
[1722304674825,5.96885,3307.4,3307.0,35.0]
[1722304675027,2.96885,3307.4,3307.0,35.0]
[1722304675341,0.07141941,3307.3,3307.0,35.0]
[1722304675701,0.55,3307.2,3307.0,35.0]
[1722304676083,3.55,3307.4,3307.0,35.0]
[1722304676420,0.55,3307.4,3307.0,35.0]
[1722304676621,5.41868,3307.6,3307.0,35.0]
[1722304676622,2.41902,3307.2,3307.0,35.0]
[1722304676930,5.41882,3307.4,3307.0,35.0]
[1722304677227,0.07140798,3307.1,3307.0,35.0]
[1722304677392,0.55,3307.3,3307.0,35.0]
[1722304677598,0.07140798,3307.2,3307.0,35.0]
[1722304677834,2.41889,3307.3,3307.0,35.0]
[1722304678033,0.07141178,3307.1,3307.0,35.0]
[1722304678236,2.41889,3307.3,3307.0,35.0]
[1722304678455,0.07141178,3307.1,3307.0,35.0]
[1722304678641,2.41889,3307.3,3307.0,35.0]
[1722304678847,0.07141178,3307.1,3307.0,35.0]
[1722304679169,0.07140415,3307.1,3307.0,38.04901288]
[1722304679379,0.55,3307.5,3307.0,38.04901288]
[1722304679527,0.07140415,3307.4,3307.1,2.4669]
[1722304679717,0.07140415,3307.4,3307.1,3.01849129]
[1722304679933,0.07140415,3307.4,3307.3,35.0]
[1722304681255,3.07140415,3307.4,3307.3,35.0]
[1722304681494,0.07140415,3307.4,3307.3,35.0]
[1722304681825,3.0,3307.7,3307.3,35.0]
[1722304682020,0.07142705,3307.4,3307.3,35.0]
[1722304682239,0.55,3307.6,3307.3,35.0]
[1722304682463,0.07142705,3307.4,3307.3,35.0]
[1722304682619,0.55,3307.6,3307.3,35.0]
[1722304682823,0.07142705,3307.4,3307.3,35.0]
[1722304683057,2.96867,3307.6,3307.3,35.0]
[1722304683058,3.0,3307.5,3307.3,35.0]
[1722304683253,0.07142705,3307.4,3307.3,35.0]
[1722304683528,0.07142705,3307.4,3307.3,42.88679288]
[1722304683752,7.37,3308.1,3307.3,42.88679288]
[1722304683753,7.37,3308.1,3307.4,2.41877]
[1722304684085,9.78802,3308.5,3307.7,2.41859]
[1722304684222,0.07142705,3308.0,3307.7,2.41859]
[1722304684425,2.41809,3308.4,3307.9,35.0]
[1722304684627,7.37,3308.5,3307.9,35.0]
[1722304684853,2.41816,3308.3,3307.9,35.0]
[1722304685036,0.55,3308.2,3307.9,35.0]
[1722304685451,0.55,3308.4,3307.9,35.0]
[1722304685681,2.41837,3308.0,3307.9,35.0]
[1722304685831,5.38674,3308.0,3307.9,35.0]
[1722304686173,2.41873,3307.6,3306.7,2.41932]
[1722304686357,2.41855,3307.8,3306.6,2.4334]
[1722304686358,2.41875,3307.5,3306.6,2.4334]
[1722304686570,2.41874,3307.5,3306.7,0.485286]
[1722304686892,4.83778,3307.3,3307.2,35.0]
[1722304687225,5.38778,3307.3,3307.2,35.0]
[1722304688070,2.96889,3307.3,3307.2,35.0]
[1722304688435,5.38778,3307.3,3307.2,35.0]
[1722304688634,3.507668,3307.3,3307.2,35.0]
[1722304688883,5.926558,3307.3,3307.2,35.0]
[1722304689027,9.511558,3307.3,3307.2,35.0]
[1722304689274,9.511558,3307.3,3305.7,2.2734]
[1722304689275,2.41956,3306.4,3305.7,2.2734]
[1722304689513,2.3799,3307.2,3305.7,2.2734]
[1722304689514,2.41964,3306.3,3305.7,2.2734]
[1722304689787,2.41964,3306.3,3306.2,35.0]
[1722304689991,2.96964,3306.3,3306.2,35.0]
[1722304691842,2.41934,3306.7,3306.2,35.0]
[1722304692126,2.9694,3306.6,3306.2,35.0]
[1722304693074,0.55,3306.6,3306.2,38.04901288]
[1722304693343,0.55,3306.6,3306.2,3.04901288]
[1722304693344,3.0,3306.6,3306.2,3.04901288]
[1722304693620,5.96933,3306.7,3305.9,2.41991]
[1722304693828,5.96933,3306.7,3306.6,35.0]
[1722304693992,3.55,3306.7,3306.6,35.0]
[1722304694202,0.55,3306.7,3306.6,35.0]
[1722304694528,3.55,3306.7,3306.6,35.0]
[1722304694901,0.55,3306.7,3306.6,35.0]
[1722304695231,0.55,3306.9,3306.6,35.0]
[1722304696038,3.32419,3306.9,3306.6,35.0]
[1722304696332,4.83866,3306.7,3306.6,35.0]
[1722304696539,11.97366,3306.7,3306.6,35.0]
[1722304697260,14.39299,3306.7,3306.6,35.0]
[1722304698301,2.41989,3306.0,3305.5,2.3082]
[1722304698506,3.0,3306.1,3305.5,2.3082]
[1722304698702,3.0,3306.1,3306.0,35.0]
[1722304698944,0.55,3306.1,3306.0,35.0]
[1722304699126,3.03579881,3306.1,3306.0,35.0]
[1722304699326,6.03579881,3306.1,3306.0,35.0]
[1722304699653,3.61603881,3306.1,3306.0,35.0]
[1722304699808,3.06603881,3306.1,3306.0,38.04901288]
[1722304700009,0.06603881,3306.1,3306.0,38.04901288]
[1722304700204,7.37,3306.5,3306.0,40.46882288]
[1722304700460,3.0,3306.4,3306.2,2.4335]
[1722304700669,3.0,3306.4,3306.2,3.22978102]
[1722304700813,2.41933,3306.7,3306.3,35.0]
[1722304701007,2.4194,3306.6,3306.3,35.0]
[1722304702118,3.0,3306.8,3306.2,2.4335]
[1722304702320,7.37,3307.1,3306.3,0.06048061]
[1722304702556,12.17,3307.4,3306.5,2.41946]
[1722304702852,2.41889,3307.3,3307.2,35.0]
[1722304703353,4.83778,3307.3,3307.2,35.0]
[1722304703769,5.38778,3307.3,3307.2,35.0]
[1722304704446,10.80667,3307.3,3307.2,35.0]
[1722304704612,2.41948,3306.5,3305.8,2.2865]
[1722304704813,2.41953,3306.5,3305.8,2.2865]
[1722304705017,2.41955,3306.4,3305.8,2.2865]
[1722304705666,2.41955,3306.4,3306.3,35.0]
[1722304705958,5.931055,3306.4,3306.3,35.0]
[1722304706360,8.931055,3306.4,3306.3,35.0]
[1722304707251,10.16970164,3306.4,3306.3,35.0]
[1722304707473,8.931055,3306.4,3306.3,35.0]
[1722304707821,8.3891,3306.4,3306.3,35.0]
[1722304710438,5.96955,3306.4,3306.3,35.0]
[1722304712392,8.3891,3306.4,3306.3,35.0]
[1722304712855,12.35806555,3306.4,3306.3,35.0]
[1722304714154,10.87463899,3306.4,3306.3,35.0]
[1722304714358,13.94144848,3306.4,3306.3,35.0]
[1722304714558,12.7021364,3306.4,3306.3,35.0]
[1722304717199,2.41984,3306.0,3304.4,2.487]
[1722304717456,2.41984,3306.0,3304.6,2.42085]
[1722304717457,2.42043,3305.2,3304.6,2.42085]
[1722304717611,2.4205,3305.1,3304.7,35.0]
[1722304717945,0.06575141,3305.0,3304.7,35.0]
[1722304718627,2.48634141,3305.0,3304.5,0.4908]
[1722304718840,0.06575141,3305.0,3304.4,2.487]
[1722304719015,2.42087,3304.6,3304.4,2.487]
[1722304719225,2.48633875,3304.5,3303.8,2.2892]
[1722304719552,2.48633875,3304.5,3303.9,35.0]
[1722304719835,2.48633875,3304.5,3304.0,3.04901288]
[1722304720337,2.48633875,3304.5,3303.8,4.71064]
[1722304720571,0.06539875,3304.5,3304.1,35.0]
[1722304721039,0.06531061,3304.4,3304.1,35.0]
[1722304721206,0.06531061,3304.4,3304.1,38.04901288]
[1722304721408,2.42079,3304.7,3304.1,38.04901288]
[1722304721606,0.06478531,3304.6,3304.1,38.04901288]
[1722304722331,0.06478531,3304.6,3304.2,2.42115]
[1722304722538,3.0,3304.8,3304.2,2.42115]
[1722304722840,0.55,3304.7,3304.2,0.484245]
[1722304723003,0.61483518,3304.7,3304.2,0.484245]
[1722304723226,3.03562518,3304.7,3304.6,35.0]
[1722304723652,5.45641518,3304.7,3304.6,35.0]
[1722304725266,8.45641518,3304.7,3304.6,35.0]
[1722304726128,6.03562518,3304.7,3304.6,35.0]
[1722304726332,3.61483518,3304.7,3304.6,35.0]
[1722304726643,3.03562518,3304.7,3304.6,35.0]
[1722304726855,6.03562518,3304.7,3304.6,35.0]
[1722304728434,8.45641518,3304.7,3304.6,35.0]
[1722304728772,6.03562518,3304.7,3304.6,35.0]
[1722304730286,0.06483518,3304.7,3304.6,40.47011288]
[1722304730640,2.42042,3305.3,3304.6,42.89097288]
[1722304730840,2.48511944,3305.2,3304.6,5.47011288]
[1722304731065,2.48511944,3305.2,3304.7,0.06051267]
[1722304731388,2.48511944,3305.2,3305.1,35.0]
[1722304731559,3.03511944,3305.2,3305.1,35.0]
[1722304732067,5.45554944,3305.2,3305.1,35.0]
[1722304733380,8.45554944,3305.2,3305.1,35.0]
[1722304733546,10.13623638,3305.2,3305.1,35.0]
[1722304736104,6.03511944,3305.2,3305.1,35.0]
[1722304736571,3.06468944,3305.2,3305.1,35.0]
[1722304736739,5.48510944,3305.2,3305.1,35.0]
[1722304736939,5.48510944,3305.2,3304.9,2.3511]
[1722304737182,2.48510944,3305.2,3304.9,2.3511]
[1722304737380,5.48510944,3305.2,3304.9,2.3511]
[1722304737685,3.06468944,3305.2,3305.0,35.0]
[1722304737980,2.4205,3305.1,3305.0,38.04901288]
[1722304738215,5.48536584,3305.1,3305.0,35.0]
[1722304739193,2.48536584,3305.1,3305.0,35.0]
[1722304739430,5.45586584,3305.1,3305.0,35.0]
[1722304739705,6.03536584,3305.1,3305.0,35.0]
[1722304743697,3.06486584,3305.1,3305.0,35.0]
[1722304743902,4.90586584,3305.1,3305.0,35.0]
[1722304744139,9.09221754,3305.1,3305.0,35.0]
[1722304744344,9.15708338,3305.1,3305.0,35.0]
[1722304744642,8.45586584,3305.1,3305.0,35.0]
[1722304746818,10.87636584,3305.1,3305.0,35.0]
[1722304747438,12.42538788,3305.1,3305.0,35.0]
[1722304747941,12.42526351,3305.1,3305.0,35.0]
[1722304748132,3.61486584,3305.1,3303.6,2.4966]
[1722304748337,2.42138,3303.9,3303.6,2.4966]
[1722304748650,2.42138,3303.9,3303.8,35.0]
[1722304748832,2.97138,3303.9,3303.8,35.0]
[1722304749034,5.39276,3303.9,3303.8,35.0]
[1722304750254,2.97138,3303.9,3303.8,35.0]
[1722304752022,0.55,3303.9,3303.8,38.04901288]
[1722304752224,3.0,3304.5,3303.8,40.49341288]
[1722304752538,3.0,3304.5,3303.8,5.49341288]
[1722304752539,2.42102,3304.4,3303.8,5.49341288]
[1722304752742,5.42102,3304.4,3303.8,2.4444]
[1722304752912,5.42102,3304.4,3304.1,35.0]
[1722304753109,2.42102,3304.4,3304.1,35.0]
[1722304753534,4.84232,3304.2,3304.1,35.0]
[1722304753835,7.84232,3304.2,3304.1,35.0]
[1722304754034,8.39232,3304.2,3304.1,35.0]
[1722304754875,5.97116,3304.2,3304.1,35.0]
[1722304755084,3.0,3304.2,3304.1,35.0]
[1722304755381,3.65985475,3304.7,3304.1,38.04901288]
[1722304755382,3.0,3304.3,3304.1,38.04901288]
[1722304755606,2.4208,3304.7,3304.1,38.04901288]
[1722304756077,2.42087,3304.6,3304.1,38.04901288]
[1722304756237,2.42087,3304.6,3304.2,2.3348]
[1722304756436,2.42067,3304.9,3304.2,6.53431857]
[1722304756658,9.79057,3305.0,3304.3,2.48160098]
[1722304756837,9.79057,3305.0,3304.9,35.0]
[1722304757039,2.42057,3305.0,3304.9,35.0]
[1722304757234,2.48528631,3305.0,3304.9,35.0]
[1722304758074,3.03528631,3305.0,3304.9,35.0]
[1722304758275,6.03528631,3305.0,3304.9,35.0]
[1722304758836,8.45585631,3305.0,3304.9,35.0]
[1722304759041,9.58039302,3305.0,3304.9,35.0]
[1722304759256,10.81944777,3305.0,3304.9,35.0]
[1722304759576,11.13165835,3305.0,3304.9,35.0]
[1722304759784,9.58039302,3305.0,3304.9,35.0]
[1722304760140,10.82134273,3305.0,3304.9,35.0]
[1722304760369,9.69680602,3305.0,3304.9,35.0]
[1722304760582,8.45585631,3305.0,3304.9,35.0]
[1722304760990,10.00739282,3305.0,3304.9,35.0]
[1722304762003,7.58682282,3305.0,3304.9,35.0]
[1722304762795,7.58682282,3305.0,3304.2,4.75595]
[1722304762796,2.42069,3304.9,3304.2,4.75595]
[1722304762953,1.79196775,3304.8,3304.3,0.475595]
[1722304763162,1.85694865,3304.8,3304.7,35.0]
[1722304763361,7.27766865,3304.8,3304.7,35.0]
[1722304763659,10.00887119,3304.8,3304.7,35.0]
[1722304763862,7.58815119,3304.8,3304.7,35.0]
[1722304764796,4.85712662,3304.8,3304.7,35.0]
[1722304764959,0.6149809,3304.8,3304.7,35.0]
[1722304765159,4.85709063,3304.8,3304.7,35.0]
[1722304765895,0.0649809,3304.8,3304.7,42.89560288]
[1722304766190,0.0649809,3304.8,3304.7,40.47481288]
[1722304766369,1.24210973,3305.4,3304.7,40.47481288]
[1722304766572,2.42036,3305.3,3304.7,5.47481288]
[1722304766759,1.30460489,3305.3,3304.8,0.06051293]
[1722304767189,0.06284774,3305.3,3304.8,0.06051293]
[1722304767400,0.06284774,3305.3,3304.8,2.48118293]
[1722304767561,0.06284774,3305.3,3304.8,0.06051293]
[1722304767763,0.06284774,3305.3,3305.2,2.4258]
[1722304767985,0.06284774,3305.3,3305.2,2.910424]
[1722304768200,1.24175715,3305.6,3305.2,2.910424]
[1722304768433,0.06305897,3305.3,3305.2,2.4258]
[1722304768933,1.24175715,3305.6,3305.2,2.4258]
[1722304769230,0.06307434,3305.3,3305.2,2.4258]
[1722304769553,0.06307434,3305.3,3304.8,4.68799]
[1722304769721,0.06307434,3305.3,3304.5,2.42088]
[1722304769722,2.42047,3305.2,3304.5,2.42088]
[1722304769896,1.24157091,3305.4,3304.4,4.68831]
[1722304770230,3.03350887,3305.3,3304.5,2.48144575]
[1722304770445,2.42043,3305.2,3304.5,2.48144575]
[1722304770597,0.55,3305.1,3304.5,2.42093]
[1722304771001,0.06310887,3305.0,3304.4,2.2673]
[1722304772019,2.42065,3304.9,3304.4,2.2673]
[1722304772401,0.06302824,3304.8,3304.4,2.2673]
[1722304772601,2.97085,3304.7,3304.0,4.74014]
[1722304772934,0.06298217,3304.6,3304.0,4.74014]
[1722304773232,0.06298217,3304.6,3304.2,2.42115]
[1722304773436,0.06298217,3304.6,3304.3,2.48159161]
[1722304773795,0.06298217,3304.5,3304.2,2.42115]
[1722304774028,3.66207091,3305.1,3304.3,0.06051863]
[1722304774341,3.03353144,3305.0,3304.3,2.48154863]
[1722304774693,3.03353144,3305.0,3304.3,2.42103]
[1722304775754,0.61295144,3305.0,3304.4,0.06051853]
[1722304775987,0.06295144,3305.0,3304.5,2.42093]
[1722304776143,0.06295144,3305.0,3304.7,2.42073]
[1722304776480,2.42044,3305.2,3304.6,2.321]
[1722304776647,3.0,3305.4,3304.6,2.321]
[1722304776648,0.06295527,3305.1,3304.6,2.321]
[1722304776848,2.42051,3305.1,3304.6,2.321]
[1722304777073,0.06295527,3305.0,3304.6,2.321]
[1722304777259,3.66188933,3305.3,3304.6,5.30854002]
[1722304777437,0.06295527,3305.2,3304.6,5.30854002]
[1722304777886,0.06295527,3305.2,3304.8,2.42071]
[1722304778195,1.24146933,3305.4,3304.8,2.42071]
[1722304778196,4.24146933,3305.4,3304.8,2.42071]
[1722304778346,0.06300904,3305.1,3304.8,2.48122028]
[1722304778540,0.55,3305.3,3304.8,3.01205882]
[1722304778742,0.06300904,3305.0,3304.6,2.82716514]
[1722304778955,2.42043,3305.2,3304.6,2.82716514]
[1722304779182,0.06300904,3304.9,3304.6,2.321]
[1722304779383,3.66189933,3305.2,3304.6,2.321]
[1722304779681,2.42043,3305.2,3304.6,2.321]
[1722304779887,0.06305127,3305.1,3304.6,2.321]
[1722304780538,0.55,3305.0,3304.4,2.2836]
[1722304780741,0.79834813,3305.0,3304.4,2.2836]
[1722304780944,0.55,3305.0,3304.4,2.2836]
[1722304781143,0.062986,3304.9,3304.4,2.2836]
[1722304781546,2.42072,3304.8,3304.4,2.2836]
[1722304781853,2.483706,3304.8,3304.4,2.2836]
[1722304782072,0.062986,3304.8,3304.4,2.2836]
[1722304782275,2.42072,3304.8,3304.4,2.2836]
[1722304782473,0.06298984,3304.7,3304.1,2.4212]
[1722304782675,0.06298984,3304.7,3304.1,2.89715]
[1722304782883,0.06298984,3304.7,3304.2,2.42115]
[1722304783084,6.66173216,3305.0,3304.5,2.42092]
[1722304783085,3.0,3305.0,3304.5,2.42092]
[1722304783251,0.55,3304.9,3304.5,2.42092]
[1722304783460,0.06298984,3304.8,3304.7,2.42074]
[1722304783661,6.66149216,3305.3,3304.5,0.484199]
[1722304783862,0.06293994,3305.2,3304.5,0.484199]
[1722304784169,0.06293994,3305.2,3304.6,0.2905199]
[1722304784399,3.06293994,3305.2,3304.7,2.48129038]
[1722304784570,0.06293994,3305.2,3304.7,2.42078]
[1722304784968,4.24114216,3305.4,3304.7,2.42078]
[1722304785173,0.06293994,3305.1,3304.7,4.69268]
[1722304785402,0.55,3305.3,3304.7,5.43309399]
[1722304785604,0.06293994,3305.0,3304.8,0.06051041]
[1722304785767,2.97035,3305.3,3304.8,0.06051041]
[1722304786083,3.0,3305.2,3304.7,3.01231399]
[1722304786280,0.0630052,3305.1,3304.7,3.01231399]
[1722304786606,0.0630052,3305.1,3304.8,0.06051062]
[1722304787022,0.0630052,3305.1,3304.7,3.01231399]
[1722304787220,0.0630052,3305.1,3304.8,0.06051062]
[1722304788310,0.55,3305.3,3304.8,0.06051062]
[1722304788508,0.0630052,3305.2,3304.8,0.06051062]
[1722304789013,0.0630052,3305.2,3304.9,2.42064]
[1722304789221,0.55,3305.3,3304.9,2.42064]
[1722304789426,0.0630052,3305.1,3305.0,2.72919544]
[1722304789565,1.24121495,3305.6,3305.0,2.48108038]
[1722304789769,0.06308584,3305.1,3305.0,2.48108038]
[1722304789973,1.24121495,3305.6,3305.0,2.48108038]
[1722304790368,1.24121495,3305.7,3305.1,2.42043]
[1722304790709,1.24121495,3305.7,3305.3,2.42034]
[1722304790868,0.06308584,3305.6,3305.3,2.42034]
[1722304791075,1.24121495,3305.8,3305.3,2.42034]
[1722304791272,0.0631319,3305.7,3305.3,2.42034]
[1722304791583,1.24121495,3305.9,3305.3,2.42034]
[1722304791789,1.24121495,3305.9,3305.1,2.42045]
[1722304791790,3.66112495,3305.9,3305.1,2.42045]
[1722304791973,3.0631319,3305.8,3305.2,2.42042]
[1722304792321,3.0631319,3305.8,3304.7,2.2719]
[1722304792538,0.55,3305.7,3305.0,2.42052]
[1722304793205,2.48336557,3305.6,3305.0,2.42056]
[1722304793587,0.06323557,3305.6,3305.5,2.4202]
[1722304794105,3.97087504,3306.4,3305.6,2.42011]
[1722304794106,3.0,3306.3,3305.6,2.42011]
[1722304794285,3.0,3306.3,3305.7,0.06049304]
[1722304795042,3.0,3306.3,3305.8,2.41993]
[1722304795184,3.0,3306.4,3305.9,0.06049011]
[1722304795386,5.41947,3306.5,3305.9,0.06049011]
[1722304796497,3.0,3306.5,3305.9,2.48040011]
[1722304796808,3.66006483,3306.7,3305.9,2.48040011]
[1722304796809,3.0,3306.6,3305.9,2.48040011]
[1722304797123,1.24069483,3306.8,3306.2,2.41964]
[1722304797344,1.24069483,3306.9,3306.3,0.06048404]